Cogmind - Beta 13 *** ADVENTURER MODE // 2024.05.22 @ 10:31:42 Player: Blade Result: Destroyed self with Grenade Launcher Performance ------------- Evolutions (0) 0 Regions Visited (3) 600 Robots Destroyed (23) 115 Value Destroyed (529) 529 Prototype IDs (0) 0 Alien Tech Used (0) 0 Bonus (0) 0 TOTAL SCORE: 1244 Bonus ------- None Cogmind --------- Core Integrity 0/250 Matter 232/300 Energy 232/250 System Corruption 0% Temperature Cool (0) Movement Treading (240) Ox1 Location -10/Subcaves Parts ------- > --- POWER (1) -------- Ion Engine > --- PROPULSION (2) --- Light Treads > --- UTILITY (2) ------ Medium Storage Unit Improved Light Armor Plating > --- WEAPON (2) ------- Pulse Rifle Grenade Launcher > --- INVENTORY (10) --- Aluminum Leg Huge Storage Unit Large Matter Pod (150) Core Shielding Assault Rifle Welding Torch Flamer Peak State ------------ > --- POWER ------------ Ion Engine > --- PROPULSION ------- Aluminum Leg Aluminum Leg > --- UTILITY ---------- Medium Storage Unit Improved Weapon Shielding > --- WEAPON ----------- Pulse Rifle Grenade Launcher > --- INVENTORY -------- Ion Engine Light Treads Light Treads Aluminum Leg Huge Storage Unit Large Matter Pod Core Shielding Improved Light Armor Plating Assault Rifle [Rating: 12] Favorites ----------- Power Ion Engine Engine Ion Engine Propulsion Aluminum Leg Treads Light Treads Leg Aluminum Leg Utility Medium Storage Unit Storage Medium Storage Unit Protection Backup Plating I Weapon Light Assault Rifle Energy Gun Pulse Rifle Ballistic Gun Light Assault Rifle Launcher Grenade Launcher Special Weapon Welding Torch Build | -11 -10 -10 -10 ------- Run | Yrd Mat Min Sub Slots Evolved . | . . . . Power . | . . . . Propulsion . | . . . . Utility . | . . . . Weapon . | . . . . Parts Attached 15 | . 2 10 3 Power 1 | . . 1 . Engine 1 | . . 1 . Core . | . . . . Reactor . | . . . . Propulsion 3 | . 1 2 . Treads 2 | . . 2 . Leg 1 | . 1 . . Wheel . | . . . . Hover . | . . . . Flight . | . . . . Utility 4 | . 1 3 . Device . | . . . . Storage 1 | . 1 . . Processor . | . . . . Hackware . | . . . . Protection 3 | . . 3 . Artifact . | . . . . Weapon 7 | . . 4 3 Energy Gun 1 | . . 1 . Energy Cannon . | . . . . Ballistic Gun . | . . . . Ballistic Cannon . | . . . . Launcher 3 | . . 2 1 Special Weapon 3 | . . 1 2 Impact Weapon . | . . . . Slashing Weapon . | . . . . Piercing Weapon . | . . . . Special Melee Weapon . | . . . . Unidentified Prototypes . | . . . . Parts Lost 6 | . . 5 1 Power 1 | . . 1 . Propulsion 3 | . . 2 1 Utility 1 | . . 1 . Weapon 1 | . . 1 . Highest Loss Streak 5 | . . 5 1 To Critical Strikes 1 | . . . 1 Average Slot Usage (%) 96 | . 99 94 89 Engine 12 | . 14 11 14 Treads 6 | . . 11 18 Leg 20 | . 28 16 . Storage 14 | . 14 14 14 Protection 13 | . 13 13 14 Energy Gun 5 | . . 9 14 Ballistic Gun 15 | . 28 5 . Launcher 4 | . . 7 11 Special Weapon 1 | . . 2 3 Naked Turns . | . . . . Heaviest Build 24 | 13 19 24 24 Greatest Support 40 | 20 20 40 40 Greatest Overweight (x) 7 | . . 7 1 Average Overweight (x) . | . . . . Largest Inventory Capacity 10 | 8 10 10 10 Average Capacity 9 | 8 9 10 10 Most Carried 10 | 6 10 10 7 Average Carried 8 | 6 8 8 6 Final Capacity 10 | 8 10 10 10 Final Carried 10 | 6 10 6 7 Class Distribution -------------------- 100% | Mutant Dominant Class ---------------- Mutant | -10/Materials Mutant | -10/Mines Mutant | -10/Subcaves Resources | -11 -10 -10 -10 ----------- Run | Yrd Mat Min Sub Matter Collected 644 | 200 137 270 37 Remotely . | . . . . Salvage Created 576 | . 243 270 63 Parts 45 | . 19 22 4 Haulers Intercepted 1 | . 1 . . Recyclers Shooed . | . . . . Parts Field Recycled . | . . . . Retrieved Matter . | . . . . Parts Self-Destructed . | . . . . Prevented . | . . . . Kills | -11 -10 -10 -10 ------- Run | Yrd Mat Min Sub Combat Hostiles Destroyed 20 | . 7 11 2 Guns 13 | . 7 6 . AOE 7 | . . 5 2 Classes Destroyed 9 | . 3 5 1 Worker 2 | . . 2 . Tunneler 2 | . . 2 . Hauler 1 | . 1 . . Recycler 2 | . . 2 . Swarmer 6 | . 3 3 . Grunt 6 | . 4 2 . Demolisher 2 | . . 2 . Subdweller 2 | . . . 2 Assembled 4 | . . 4 . Best Kill Streak 8 | . 3 8 2 Combat Bots Only 5 | . 3 5 2 Max Kills in Single Turn 3 | . 1 3 1 Gunslinging 1 | . . 1 . Exploded 2 | . . 2 1 Melee . | . . . . Uniques/NPCs Destroyed . | . . . . Combat | -11 -10 -10 -10 -------- Run | Yrd Mat Min Sub Hostile Shots Fired 84 | . 26 36 22 Missed 16 | . 6 4 6 Damage Taken 1200 | . 211 713 276 Core 250 | . 49 157 44 Absorbed by Shields . | . . . . Redirected to Shielding 100 | . . 100 . Ignored by Resistances 338 | . 63 196 79 Core Remaining (%) 100 | 100 . . . Volleys Fired 78 | . 29 39 10 Largest 2 | . 2 2 2 Hottest 163 | . 40 93 163 Shots Fired 127 | . 58 50 19 Gun 104 | . 58 37 9 Cannon . | . . . . Launcher 15 | . . 10 5 Special 8 | . . 3 5 Kinetic 73 | . 58 15 . Thermal 39 | . . 25 14 Explosive 15 | . . 10 5 Electromagnetic . | . . . . Robot Hit Streak 35 | . 35 7 17 Robot Miss Streak 1 | . 1 1 1 Penetration Max . | . . . . Secondary Targets 2 | . 1 1 . Max Gunslinging Chain 1 | . 1 1 . Shots Hit Robots 96 | . 52 27 17 Core Hits 59 | . 18 37 4 Critical Kills . | . . . . Critical Parts Destroyed 1 | . 1 . . Critical Strikes 2 | . 1 1 . Burn 1 | . . 1 . Destroy 1 | . 1 . . Melee Attacks . | . . . . Impact . | . . . . Slashing . | . . . . Piercing . | . . . . Sneak Attacks . | . . . . Combat Hostiles . | . . . . Follow-up Attacks . | . . . . Damage Inflicted 1626 | . 559 790 277 Guns 885 | . 535 316 34 Cannons . | . . . . Explosions 667 | . . 424 243 Melee . | . . . . Ramming 74 | . 24 50 . Kinetic 615 | . 535 80 . Thermal 270 | . . 236 34 Explosive 667 | . . 424 243 Electromagnetic . | . . . . Impact . | . . . . Slashing . | . . . . Piercing . | . . . . Highest Corruption . | . . . . Average Corruption . | . . . . Corruption Purged . | . . . . Corruption Blocked . | . . . . Overload Shots . | . . . . Overflow Damage . | . . . . Projectiles . | . . . . Explosions . | . . . . Melee . | . . . . Knockbacks . | . . . . Impact . | . . . . Kinetic . | . . . . Secondary . | . . . . Self-Inflicted Damage 16 | . . . 16 Shots 1 | . . . 1 Rammed 5 | . . 5 . Targets Rammed 15 | . 4 11 . Kicked 9 | . 4 5 . Crushed 1 | . . 1 . Highest Temperature 120 | . 31 120 16 Average Temperature 25 | . 4 42 9 Received Heat Transfer 168 | . 117 39 12 Siege Activations . | . . . . Robots Corrupted . | . . . . Combat Hostiles . | . . . . Parts Fried . | . . . . Impact Corruptions . | . . . . Robots Melted . | . . . . Combat Hostiles . | . . . . Parts Melted . | . . . . Heat Transferred 666 | . . 592 74 Parts Sabotaged . | . . . . Parts Stolen . | . . . . Parts Stripped . | . . . . Power Chain Reactions . | . . . . Alert | -11 -10 -10 -10 ------- Run | Yrd Mat Min Sub Peak Influence 177 | . 177 154 . Initial 1 | . . 1 . Average 43 | . 44 43 . Maximum Alert Level . | . . . . Low Security (%) 100 | 100 100 100 . Level 1 . | . . . . Level 2 . | . . . . Level 3 . | . . . . Level 4 . | . . . . Level 5 . | . . . . High Security . | . . . . Max Security . | . . . . Squads Dispatched 1 | . . 1 . Investigation 1 | . . 1 . Extermination . | . . . . Reinforcement . | . . . . Assault . | . . . . Garrison . | . . . . Intercept . | . . . . Searches Triggered . | . . . . Construction Impeded . | . . . . Haulers Reinforced . | . . . . Active Scanning Responses . | . . . . Cargo Convoy Interrupts . | . . . . Stealth | -11 -10 -10 -10 --------- Run | Yrd Mat Min Sub Distress Signals 2 | . 1 1 . Communications Jammed . | . . . . Distress Signals . | . . . . Times Spotted 41 | . 14 24 3 Peak Tracking Total 13 | . 6 13 2 Tactical Retreats . | . . . . Traps | -11 -10 -10 -10 ------- Run | Yrd Mat Min Sub Traps Triggered 2 | . 2 . . Indirectly . | . . . . Trap Hack Attempts . | . . . . Triggered . | . . . . Disarmed 6 | . 6 . . Reprogrammed . | . . . . Reused . | . . . . Traps Extracted . | . . . . Installed . | . . . . Triggered . | . . . . Machines | -11 -10 -10 -10 ---------- Run | Yrd Mat Min Sub Machines Disabled 1 | . . 1 . Max in Single Turn 1 | . . 1 . Machines Repaired . | . . . . Machines Dismantled . | . . . . Machines Sabotaged . | . . . . Overloaded Fab Kills . | . . . . Hacking | -11 -10 -10 -10 --------- Run | Yrd Mat Min Sub Machines Accessed 12 | . 11 1 . Terminals 8 | . 8 . . Fabricators . | . . . . Repair Stations 1 | . 1 . . Recycling Units 2 | . 2 . . Scanalyzers . | . . . . Garrison Access . | . . . . Total Hacks 26 | . 25 1 . Successful 13 | . 12 1 . Failed 13 | . 13 . . Catastrophic 2 | . 2 . . Database Lockouts . | . . . . Manual 19 | . 19 . . Terminals 21 | . 21 . . Fabricators . | . . . . Repair Stations 1 | . 1 . . Recycling Units 3 | . 3 . . Scanalyzers . | . . . . Garrison Access . | . . . . Terminal Hacks 11 | . 10 1 . Part Schematic 1 | . 1 . . Robot Analysis 2 | . 2 . . Open Door 1 | . . 1 . Branch Access Points 1 | . 1 . . Terminal Index 1 | . 1 . . Unreport Threat 2 | . 2 . . Disarm Traps 1 | . 1 . . Transport Status 1 | . 1 . . Hauler Manifests 1 | . 1 . . Fabricator Hacks . | . . . . Repair Station Hacks 1 | . 1 . . Refit 1 | . 1 . . Recycling Unit Hacks 1 | . 1 . . Retrieve Components 1 | . 1 . . Scanalyzer . | . . . . Garrison Access Hacks . | . . . . Unauthorized Hacks . | . . . . Terminals . | . . . . Fabricators . | . . . . Repair Stations . | . . . . Recycling Units . | . . . . Scanalyzers . | . . . . Garrison Access . | . . . . Data Cores Recovered . | . . . . Used . | . . . . Hacking Detections 6 | . 6 . . Full Trace Events . | . . . . Feedback Events . | . . . . Feedback Blocked . | . . . . Robot Schematics Acquired . | . . . . Robots Built . | . . . . Authchips . | . . . . Time . | . . . . Total Robot Build Rating . | . . . . Part Schematics Acquired 1 | . 1 . . Parts Built . | . . . . Authchips . | . . . . Time . | . . . . Total Part Build Rating . | . . . . Parts Repaired . | . . . . Time . | . . . . Parts Recycled . | . . . . Recycled Matter . | . . . . Retrieved Matter . | . . . . Retrieved Components 3 | . 3 . . Parts Scanalyzed . | . . . . Part Schematics Acquired . | . . . . Parts Damaged . | . . . . Bothacking | -11 -10 -10 -10 ------------ Run | Yrd Mat Min Sub Used RIF Installer . | . . . . Robots Hacked . | . . . . Non-combat . | . . . . Combat . | . . . . Robot Hacks Applied . | . . . . Relay Couplers Released . | . . . . Fabnet Peak Effective % . | . . . . Robots Rewired . | . . . . Allies Hacked . | . . . . Hacks Repelled . | . . . . Allies | -11 -10 -10 -10 -------- Run | Yrd Mat Min Sub Total Allies . | . . . . Largest Group . | . . . . Highest-Rated Group . | . . . . Highest-Rated Ally . | . . . . Total Orders . | . . . . Ally Attacks . | . . . . Total Damage . | . . . . Kills . | . . . . Allies Corrupted . | . . . . Allies Melted . | . . . . Intel | -11 -10 -10 -10 ------- Run | Yrd Mat Min Sub Robot Analysis Total 2 | . 2 . . Derelict Logs Recovered 2 | . . 2 . Drone Launches . | . . . . Drone Recoveries . | . . . . Exploration | -11 -10 -10 -10 ------------- Run | Yrd Mat Min Sub Turns Passed 2652 | 2 1189 1323 138 Spaces Moved 1623 | 2 894 675 52 Core 1 | . . 1 . Treads 334 | . . 282 52 Legs 1288 | 2 894 392 . Wheels . | . . . . Hover . | . . . . Flight . | . . . . Fastest Speed 120 | 120 120 120 160 Average Speed 145 | 120 120 175 200 Slowest Speed 400 | 120 120 400 240 Overloaded Moves . | . . . . Propulsion Burnouts . | . . . . Robots Hopped . | . . . . Cave-ins Triggered . | . . . . Exploration Rate (%) 43 | 2 93 73 4 Regions Visited 3 Branch Regions 2 Pre-discovered Areas 1 | . . 1 . Known Exits Taken 1 | . 1 . . Unknown Exits Taken 2 | 1 . 1 . Scrap Searched 4 | . . 2 2 Spaces Dug . | . . . . Terrain Destroyed 56 | . . 38 18 Melee . | . . . . Projectile . | . . . . AOE 56 | . . 38 18 Terrain Rammed . | . . . . Walls Destroyed . | . . . . Machines Disabled . | . . . . Actions | -11 -10 -10 -10 --------- Run | Yrd Mat Min Sub Total 1780 | 1 958 756 65 Wait 33 | . 20 13 . Move 1620 | 1 893 674 52 Hop . | . . . . Pick Up 10 | . 6 4 . Fast Attach 2 | . 1 1 . Attach 6 | . . 6 . Detach . | . . . . Swap 7 | . 1 3 3 Drop 9 | . 4 5 . Fire 78 | . 29 39 10 Melee . | . . . . Ram . | . . . . Kick 9 | . 4 5 . Crush 6 | . . 6 . Escape Stasis . | . . . . Rewire . | . . . . Trap . | . . . . Miscellaneous . | . . . . Route ------- -11/Scrapyard -10/Materials (discovered 4 exits: [*Mat x3] / *Min) -10/Mines (discovered 3 exits: [*Mat x2] / [*Sub]) -10/Subcaves History --------- Turn | Location | Event 1 | -11/Scrapyard | Discovered new exit (range 1) 3 | -11/Scrapyard | Entered Materials 12 | -10/Materials | Identified exit to Mines 194 | -10/Materials | Discovered new exit (range 15) 330 | -10/Materials | Build established: Mutant 468 | -10/Materials | Discovered new exit (range 12) 582 | -10/Materials | Discovered new exit (range 16) 1192 | -10/Materials | Entered Mines 1229 | -10/Mines | Found a hidden stash of uninstalled traps 1341 | -10/Mines | Discovered new exit (range 12) 1525 | -10/Mines | Learned Materials machine intel 1529 | -10/Mines | Learned Materials garrison access intel 1587 | -10/Mines | Met a Derelict shopkeep closing up shop 1949 | -10/Mines | Assembled infested the area 1971 | -10/Mines | Core integrity fell below 50% 2000 | -10/Mines | Core integrity fell below 20% 2050 | -10/Mines | Lost 5 parts (1p2n1u1w) 2051 | -10/Mines | Discovered new exit (range 9) 2298 | -10/Mines | Learned location of Storage (-8) 2495 | -10/Mines | Discovered new exit (range 10) 2515 | -10/Mines | Entered Subcaves 2616 | -10/Subcaves | Disturbed a concealed Subdweller 2653 | -10/Subcaves | Destroyed self with Grenade Launcher Last Messages --------------- 02590_ Acquired 1 matter. 02600_ Subatomizers dissect the Sub. Monowheel. 02605_ The unstable cave ceiling collapses. 02610_ Subatomizers dissect the Sub. Monowheel. 02616_ 7K-QPY(R) angrily emerges from the Twisted Machinery. 02616_ Searching scrap... 02616_ Found Sub. Machine Gun. 02616_ Found 18 Matter. 02617_ Acquired 18 matter. 02622_ The unstable cave ceiling collapses. 02625_ Subatomizers dissect the Sub. Monowheel. 02630_ Searching scrap... 02630_ Found Flamer. 02630_ Found 18 Matter. 02631_ Acquired 18 matter. 02636_ Subatomizers dissect the Sub. Monowheel. 02651_ The unstable cave ceiling collapses. 02651_ Sub. Monowheel crushed. Map ----- +----------------------------------------------------+ | ?????????????????????????????????????????????????? | | ?????????????????????????????????????????????????? | | ?????????????????????????????????????????????????? | | ?????????????????????????????????????????????????? | | ?????????????????????????????????????????????????? | | ?????????????????????????????????????????????????? | | ?????????????????????????????????????????????????? | | ?????????????????????????????????????????????????? | | ?????????????????????????????????????????????????? | | ?????????????????????????????????????????????????? | | ?????????????????????????????????????????????????? | | ?????????????????????????????????????????????????? | | ?????????????????????????????????????????????????? | | ???????????????????? ????????????????????????????? | | ?????????????????? ????????????????????????????? | | ?????????????????? ????????????????????????????? | | ?????????????????? ????????????????????????????? | | ?????????????????? ??#"""??????????????????????? | | ??????????????????# ##""""??????????????????????? | | ?????????????????## """""???????????????????????? | | ???????????????### ????##??????????????????? | | ??????????????## " ????#"##?????????????????? | | ??????????????? """ #???# "#?????????????????? | | ????????????????## " ###?? " ##????????????????? | | ????????????????# #! ##### #R# "???????????? | | ????????????????## #%& @ R<